bitfinex-derivatives/quotes_SOLF0:USTF0_20250202
["timestamp","ask_amount","ask_price","bid_price","bid_amount"]
[1738466155955,0.03168408,211.45,211.34,34.57344517]
[1738466156154,1.4722,211.5,211.34,34.57344517]
[1738466156354,4.7311,211.4,211.34,39.30574517]
[1738466156555,0.03023476,211.42,211.34,34.57344517]
[1738466156750,4.731,211.41,211.34,34.57344517]
[1738466156957,0.03023476,211.42,211.38,34.57344517]
[1738466157455,1.4722,211.5,211.38,34.57344517]
[1738466157650,0.0310671,211.42,211.38,34.57344517]
[1738466157853,0.0310671,211.42,211.38,39.30474517]
[1738466158356,0.0310671,211.42,211.4,4.7308]
[1738466158559,0.0310671,211.42,211.38,34.57344517]
[1738466158758,34.57344517,211.6,211.38,34.57344517]
[1738466158959,2.9936,211.58,211.44,34.57344517]
[1738466159252,2.9936,211.58,211.4,34.57344517]
[1738466159458,34.57344517,211.56,211.36,34.57344517]
[1738466160156,0.03253339,211.48,211.32,34.57344517]
[1738466160459,0.03253339,211.48,211.44,8.611e-05]
[1738466160653,34.57344517,211.52,211.44,8.611e-05]
[1738466160853,2.9936,211.58,211.4,34.57344517]
[1738466161054,2.9936,211.58,211.44,34.57344517]
[1738466161359,34.57344517,211.57,211.4,34.57344517]
[1738466161557,34.57344517,211.57,211.36,34.57344517]
[1738466161757,0.03097794,211.51,211.32,34.57344517]
[1738466162162,34.57344517,211.53,211.32,34.57344517]
[1738466162356,4.7315,211.38,211.33,4.7324]
[1738466162656,0.03350379,211.44,211.32,34.57344517]
[1738466162955,39.47344517,211.53,211.32,34.57344517]
[1738466163159,0.03251558,211.4,211.32,34.57344517]
[1738466163354,4.7296,211.47,211.4,4.731]
[1738466163557,2.9936,211.58,211.42,34.57344517]
[1738466163751,2.9936,211.58,211.32,34.57344517]
[1738466163961,4.728,211.54,211.46,34.57344517]
[1738466164160,0.03148676,211.52,211.46,34.57344517]
[1738466164362,0.03148676,211.52,211.42,34.57344517]
[1738466164558,0.03148676,211.52,211.32,34.57344517]
[1738466164860,34.57344517,211.57,211.24,4.9]
[1738466164861,34.57344517,211.53,211.36,34.57344517]
[1738466165064,4.7299,211.45,211.38,4.7314]
[1738466165263,0.03438567,211.44,211.38,4.7314]
[1738466165857,0.03438567,211.44,211.4,34.57344517]
[1738466166261,1.4676,211.58,211.4,34.57344517]
[1738466166562,1.4676,211.58,211.45,34.57344517]
[1738466166764,1.4676,211.58,211.49,34.57344517]
[1738466166960,0.03199457,211.51,211.49,34.57344517]
[1738466167155,4.7277,211.55,211.49,34.57344517]
[1738466167559,2.7e-06,211.52,211.5,4.7286]
[1738466167759,2.9032,211.74,211.54,34.57344517]
[1738466167967,34.57344517,211.66,211.46,34.57344517]
[1738466168660,34.57344517,211.62,211.46,34.57344517]
[1738466168866,34.57344517,211.58,211.42,34.57344517]
[1738466169062,1.5561,211.57,211.38,34.57344517]
[1738466169464,34.57344517,211.54,211.38,34.57344517]
[1738466169662,4.729,211.5,211.38,34.57344517]
[1738466169861,1.5561,211.57,211.38,34.57344517]
[1738466170163,34.57344517,211.54,211.34,34.57344517]
[1738466170363,0.03379188,211.5,211.34,34.57344517]
[1738466170569,0.03379188,211.5,211.38,34.57344517]
[1738466170870,4.7291,211.49,211.42,34.57344517]
[1738466171064,0.03219972,211.46,211.42,34.57344517]
[1738466171471,1.5561,211.57,211.42,34.57344517]
[1738466171666,0.0357094,211.46,211.42,39.30384517]
[1738466171866,0.0357094,211.46,211.42,34.57344517]
[1738466172068,1.5561,211.57,211.42,34.57344517]
[1738466172273,0.03173657,211.46,211.43,4.7303]
[1738466172572,4.7286,211.51,211.42,34.57344517]
[1738466172767,4.75974096,211.47,211.42,34.57344517]
[1738466173075,0.03014096,211.47,211.42,34.57344517]
[1738466173271,2.9032,211.61,211.42,34.57344517]
[1738466173463,0.0306153,211.47,211.42,39.30384517]
[1738466173769,4.7286,211.51,211.42,39.30384517]
[1738466173970,0.03331046,211.47,211.42,39.30384517]
[1738466174468,0.03331046,211.47,211.42,34.57344517]
[1738466174668,0.03331046,211.47,211.38,34.57344517]
[1738466175172,0.03331046,211.47,211.42,34.57344517]
[1738466175370,0.03331046,211.47,211.46,34.57344517]
[1738466175673,2.9032,211.61,211.46,34.57344517]
[1738466175674,1.4581,211.61,211.46,34.57344517]
[1738466175869,1.4706,211.65,211.54,34.57344517]
[1738466176172,1.4706,211.65,211.5,34.57344517]
[1738466176776,0.03387931,211.6,211.55,0.03373107]
[1738466177172,4.727,211.58,211.55,0.03373107]
[1738466177470,0.03387931,211.6,211.55,0.03373107]
[1738466177871,4.7273,211.57,211.55,0.03373107]
[1738466178070,0.03387931,211.6,211.55,0.03373107]
[1738466178474,0.03387931,211.6,211.55,4.76133107]
[1738466178670,0.03387931,211.6,211.55,0.03373107]
[1738466178871,0.03387931,211.6,211.58,34.57344517]
[1738466179069,0.03387931,211.6,211.55,0.03373107]
[1738466179772,4.7268,211.59,211.55,0.03373107]
[1738466179974,0.03387931,211.6,211.55,0.03373107]
[1738466180667,0.03387931,211.6,211.55,3.107e-05]
[1738466180867,4.7274,211.57,211.55,3.107e-05]
[1738466181977,4.7273,211.57,211.55,3.107e-05]
[1738466183279,34.57344517,211.57,211.31,34.57344517]
[1738466183474,34.57344517,211.53,211.31,34.57344517]
[1738466183775,4.7312,211.4,211.32,4.7327]
[1738466183971,1.5028,211.52,211.31,34.57344517]
[1738466184178,1.5028,211.52,211.38,4.7314]
[1738466184371,0.03362148,211.44,211.37,34.57344517]
[1738466184768,0.03362148,211.44,211.33,4.7325]
[1738466184969,34.57344517,211.45,211.27,34.57344517]
[1738466185168,34.57344517,211.49,211.27,34.57344517]
[1738466185478,0.03420306,211.4,211.27,34.57344517]
[1738466185670,2.9442,211.48,211.27,34.57344517]
[1738466185975,0.03052652,211.36,211.27,34.57344517]
[1738466186178,0.03052652,211.36,211.28,4.7336]
[1738466186380,0.03052652,211.36,211.31,34.57344517]
[1738466186570,2.9442,211.48,211.31,34.57344517]
[1738466186774,0.03025031,211.36,211.35,34.57344517]
[1738466186977,2.9442,211.48,211.35,34.57344517]
[1738466187176,0.03281955,211.38,211.35,34.57344517]
[1738466187476,0.03302643,211.39,211.35,34.57344517]
[1738466187676,2.9442,211.48,211.35,34.57344517]
[1738466187973,4.7304,211.43,211.31,34.57344517]
[1738466188177,0.03277248,211.44,211.31,34.57344517]
[1738466188375,2.9442,211.48,211.31,34.57344517]
[1738466188569,0.03205901,211.4,211.31,34.57344517]
[1738466188771,0.03205901,211.4,211.39,34.57344517]
[1738466189174,1.5028,211.52,211.39,34.57344517]
[1738466189676,4.73,211.45,211.39,34.57344517]
[1738466189876,1.5028,211.52,211.35,34.57344517]
[1738466190276,1.4918,211.51,211.31,34.57344517]
[1738466190578,0.03245006,211.46,211.41,0.03539275]
[1738466191181,0.03245006,211.46,211.43,34.57344517]
[1738466191579,0.03245006,211.46,211.41,0.03539275]
[1738466192474,4.7304,211.43,211.41,0.03539275]
[1738466193475,4.7304,211.43,211.31,34.57344517]
[1738466193476,0.03245006,211.46,211.31,34.57344517]
[1738466193780,2.8973,211.48,211.3,34.57344517]
[1738466193977,4.7304,211.43,211.3,34.57344517]
[1738466194176,2.8973,211.48,211.3,34.57344517]
[1738466194375,4.86,211.52,211.3,34.57344517]
[1738466194584,4.7304,211.43,211.34,34.57344517]
[1738466194780,4.76640625,211.43,211.34,34.57344517]
[1738466195280,0.03600625,211.43,211.34,34.57344517]
[1738466195675,0.03600625,211.43,211.34,21.26447559]
[1738466195876,0.03600625,211.43,211.36,4.7319]
[1738466196080,0.03600625,211.43,211.34,21.26447559]
[1738466196382,4.7284,211.52,211.44,4.7299]
[1738466196779,21.26447559,211.62,211.42,21.26447559]
[1738466197081,4.4055,211.61,211.44,4.7299]
[1738466197582,4.4055,211.61,211.42,21.26447559]
[1738466197583,4.7286,211.51,211.5,4.214e-05]
[1738466197985,4.7287,211.51,211.44,4.7301]
[1738466198177,4.4055,211.61,211.42,21.26447559]
[1738466198779,0.03174103,211.54,211.38,21.26447559]
[1738466198980,4.4055,211.61,211.42,21.26447559]
[1738466199283,0.03092294,211.48,211.42,21.26447559]
[1738466199480,4.4055,211.61,211.42,21.26447559]
[1738466199874,4.7289,211.5,211.43,4.7302]
[1738466200275,0.02980398,211.49,211.42,21.26447559]
[1738466200480,4.4055,211.61,211.42,21.26447559]
[1738466200679,0.03502812,211.48,211.34,21.26447559]
[1738466200879,21.26447559,211.51,211.34,21.26447559]
[1738466201075,0.03556597,211.43,211.34,21.26447559]
[1738466201784,0.03556597,211.43,211.37,4.7317]
[1738466202382,4.731,211.4,211.34,25.99677559]
[1738466202688,0.03556597,211.43,211.3,21.26447559]
[1738466202882,21.26447559,211.52,211.3,21.26447559]
[1738466203283,0.02990151,211.43,211.3,21.26447559]
[1738466203478,4.732,211.36,211.3,21.26447559]
[1738466203987,0.03482176,211.39,211.3,21.26447559]
[1738466204187,0.03482176,211.39,211.26,21.26447559]
[1738466204486,4.3628,211.47,211.26,21.26447559]
[1738466204685,4.76212989,211.35,211.27,4.7339]
[1738466204880,4.76212989,211.35,211.26,21.26447559]
[1738466205078,0.02992989,211.35,211.26,21.26447559]
[1738466205483,4.7325,211.34,211.26,21.26447559]
[1738466205687,0.02992989,211.35,211.26,21.26447559]
[1738466205889,0.02992989,211.35,211.2,21.26447559]
[1738466206090,21.26447559,211.44,211.2,5.41359283]
[1738466206391,0.03637826,211.3,211.24,4.7344]
[1738466206580,4.7329,211.32,211.2,5.41359283]
[1738466206779,0.03353364,211.29,211.2,5.41359283]
[1738466207084,4.3628,211.47,211.28,21.26447559]
[1738466207288,4.3628,211.47,211.34,21.26447559]
[1738466207492,6.29269424,211.5,211.34,21.26447559]
[1738466208083,0.03547407,211.44,211.4,0.0307201]
[1738466208486,4.7329,211.32,211.23,21.26447559]
[1738466208682,21.26447559,211.4,211.23,21.26447559]
[1738466209088,2.9575,211.43,211.27,21.26447559]
[1738466209688,0.03133885,211.37,211.23,21.26447559]
[1738466209895,2.9575,211.43,211.23,21.26447559]
[1738466210087,0.03551304,211.32,211.23,21.26447559]
[1738466210893,0.03551304,211.32,211.19,21.26447559]
[1738466211096,21.26447559,211.4,211.19,21.26447559]
[1738466211297,0.03344297,211.28,211.19,21.26447559]
[1738466211800,4.76734297,211.28,211.19,21.26447559]
[1738466211996,0.03344297,211.28,211.19,21.26447559]
[1738466212600,4.734,211.27,211.19,25.99997559]
[1738466213098,4.76724297,211.28,211.21,4.7352]
[1738466213297,0.03344297,211.28,211.19,21.26447559]
[1738466213999,0.03344297,211.28,211.23,21.26447559]
[1738466214199,21.26447559,211.42,211.23,21.26447559]
[1738466214401,0.03572816,211.28,211.19,21.26447559]
[1738466214603,21.26447559,211.42,211.19,21.26447559]
[1738466215103,0.03391899,211.33,211.19,21.26447559]
[1738466215300,4.5775,211.35,211.19,21.26447559]
[1738466215605,4.76384128,211.28,211.19,21.26447559]
[1738466216002,0.03014128,211.28,211.15,21.26447559]
[1738466216201,4.5775,211.35,211.15,21.26447559]
[1738466216396,0.03481515,211.24,211.15,21.26447559]
[1738466218208,4.735,211.23,211.15,21.26447559]
[1738466218403,0.03481515,211.24,211.15,21.26447559]
[1738466218706,4.7354,211.21,211.15,21.26447559]
[1738466218906,0.03481515,211.24,211.15,21.26447559]
[1738466219308,4.7354,211.21,211.15,21.26447559]
[1738466219508,0.03481515,211.24,211.15,21.26447559]
[1738466220310,0.03481515,211.24,211.19,21.26447559]
[1738466220504,4.5775,211.35,211.19,21.26447559]
[1738466220705,0.03258893,211.24,211.19,21.26447559]
[1738466220905,4.5775,211.35,211.19,21.26447559]
[1738466221107,0.0322211,211.24,211.23,21.26447559]
[1738466221308,4.7326,211.33,211.26,4.734]
[1738466221507,21.26447559,211.36,211.19,21.26447559]
[1738466221802,0.03357053,211.32,211.23,21.26447559]
[1738466222010,6.29269424,211.38,211.25,4.7343]
[1738466222210,0.03136611,211.3,211.25,4.7343]
[1738466222509,0.03136611,211.3,211.23,21.26447559]
[1738466222710,0.03136611,211.3,211.2,21.26447559]
[1738466222910,0.03136611,211.3,211.24,21.26447559]
[1738466223211,6.29269424,211.38,211.24,21.26447559]
[1738466223404,0.03236155,211.29,211.24,21.26447559]
[1738466223610,0.03236155,211.29,211.2,21.26447559]
[1738466223910,21.26447559,211.4,211.2,21.26447559]
[1738466224106,0.03244269,211.27,211.2,21.26447559]
[1738466224310,21.26447559,211.4,211.2,21.26447559]
[1738466224614,4.6357,211.43,211.29,21.26447559]
[1738466225112,4.7318,211.37,211.29,25.99777559]
[1738466225301,4.6357,211.43,211.29,21.26447559]
[1738466225505,4.6357,211.43,211.25,21.26447559]
[1738466225708,0.03045371,211.38,211.34,0.03524428]
[1738466226411,0.03045371,211.38,211.25,21.26447559]
[1738466226412,0.03045371,211.38,211.25,5.45089216]
[1738466226707,4.6357,211.43,211.25,5.45089216]
[1738466226907,4.7324,211.34,211.25,10.18509216]
[1738466227113,21.26447559,211.36,211.17,21.26447559]
[1738466227313,4.62,211.41,211.17,21.26447559]
[1738466227513,4.62,211.41,211.2,4.7353]
[1738466227712,4.62,211.41,211.17,21.26447559]
[1738466227713,0.03029368,211.31,211.17,21.26447559]
[1738466227911,21.26447559,211.37,211.17,21.26447559]
[1738466228112,4.7345,211.25,211.17,26.00057559]
[1738466228414,0.03370668,211.26,211.17,21.26447559]
[1738466229013,0.03370668,211.26,211.13,21.26447559]
[1738466229205,1.5555,211.32,211.13,21.26447559]
[1738466229404,0.03293204,211.25,211.13,21.26447559]
[1738466230413,0.03293204,211.25,211.17,21.26447559]
[1738466230612,0.03293204,211.25,211.18,4.7359]
[1738466230815,3.0117,211.31,211.18,4.7359]
[1738466231115,0.0361084,211.24,211.21,21.26447559]
[1738466231310,4.5076,211.4,211.21,21.26447559]
[1738466231612,4.5076,211.4,211.16,4.6]
[1738466231613,9.2388,211.4,211.3,25.99767559]
[1738466231816,25.17077696,211.42,211.3,21.26447559]
[1738466232016,25.17077696,211.42,211.38,21.26447559]
[1738466232218,25.17077696,211.42,211.38,25.99587559]
[1738466232419,6.29269424,211.42,211.38,21.26447559]
[1738466232621,6.32743757,211.42,211.38,0.03471914]
[1738466232919,6.32743757,211.42,211.26,21.26447559]
[1738466233319,6.29269424,211.42,211.26,21.26447559]
[1738466233509,22.75337559,211.41,211.22,21.26447559]
[1738466233710,21.26447559,211.37,211.18,21.26447559]
[1738466233913,1.4609,211.36,211.18,21.26447559]
[1738466234115,3.0187,211.36,211.18,21.26447559]
[1738466234311,0.03052996,211.3,211.18,21.26447559]
[1738466235718,4.7338,211.28,211.18,21.26447559]
[1738466235921,4.7338,211.28,211.18,26.00037559]
[1738466236222,0.03255897,211.25,211.18,21.26447559]
[1738466238118,0.03255897,211.25,211.19,4.7357]
[1738466238323,3.0187,211.36,211.23,21.26447559]
[1738466238929,6.29269424,211.38,211.23,21.26447559]
[1738466239128,6.29269424,211.38,211.27,21.26447559]
[1738466239325,4.732,211.36,211.28,4.7336]
[1738466239624,0.03363621,211.35,211.3,0.03310945]
[1738466240026,0.03363621,211.35,211.31,4.733]
[1738466240221,0.03363621,211.35,211.31,21.26447559]
[1738466240418,4.7308,211.41,211.32,4.7327]
[1738466240820,25.17077696,211.43,211.31,21.26447559]
[1738466241022,25.17077696,211.43,211.27,21.26447559]
[1738466241225,25.17077696,211.43,211.23,21.26447559]
[1738466241426,0.03236101,211.35,211.31,0.03104529]
[1738466242226,4.7327,211.33,211.31,0.03104529]
[1738466243823,0.03236101,211.35,211.31,0.03104529]
[1738466244627,4.7327,211.33,211.31,0.03104529]
[1738466245027,0.03236101,211.35,211.31,0.03104529]
[1738466246832,4.7327,211.33,211.31,0.03104529]
[1738466248429,4.7334,211.3,211.23,5.44204695]
[1738466248734,21.26447559,211.37,211.19,21.26447559]
[1738466248927,1.5539,211.34,211.19,21.26447559]
[1738466249528,0.03271611,211.29,211.24,0.03478017]
[1738466250026,0.03271611,211.29,211.25,4.7343]
[1738466250528,0.03271611,211.29,211.24,0.03478017]
[1738466250729,4.734,211.27,211.24,0.03478017]
[1738466250934,0.03271611,211.29,211.24,0.03478017]
[1738466251231,0.03271611,211.29,211.24,4.76938017]
[1738466251533,0.03271611,211.29,211.24,0.03478017]
[1738466252032,4.76631611,211.29,211.24,0.03478017]
[1738466252231,0.03271611,211.29,211.24,0.03478017]
[1738466253228,4.7344,211.25,211.24,0.03478017]
[1738466254325,4.7344,211.25,211.15,21.26447559]
[1738466254528,3.0767,211.28,211.15,21.26447559]
[1738466255036,4.736,211.18,211.15,21.26447559]
[1738466255436,3.0767,211.28,211.11,21.26447559]
[1738466255736,0.03309266,211.19,211.11,21.26447559]
[1738466256235,4.7365,211.16,211.11,21.26447559]
[1738466256436,0.03309266,211.19,211.11,21.26447559]
[1738466256734,0.03309266,211.19,211.07,21.26447559]
[1738466257133,4.7377,211.11,211.07,21.26447559]
[1738466257335,0.03582701,211.15,211.07,21.26447559]
[1738466257729,4.7381,211.09,211.03,21.26447559]
[1738466258034,1.4363,211.14,211.03,21.26447559]
[1738466258237,0.03373242,211.08,211.03,21.26447559]
[1738466260736,0.03373242,211.08,211.03,26.00357559]
[1738466261329,0.03373242,211.08,211.03,21.26447559]
[1738466261939,4.77193242,211.08,211.03,21.26447559]
[1738466262133,0.03373242,211.08,211.03,21.26447559]
[1738466262531,0.03373242,211.08,211.03,26.00357559]
[1738466262732,0.03373242,211.08,211.03,21.26447559]
[1738466262934,0.03373242,211.08,210.95,21.26447559]
[1738466263133,0.03373242,211.08,210.99,21.26447559]
[1738466263436,2.975,211.15,210.99,21.26447559]
[1738466263736,0.0330484,211.06,210.99,21.26447559]
[1738466264330,0.0330484,211.06,211.03,21.26447559]
[1738466264733,2.975,211.15,211.05,4.7389]
[1738466264927,0.03578449,211.07,211.03,21.26447559]
[1738466265138,2.975,211.15,210.99,21.26447559]
[1738466265338,0.03349064,211.07,210.99,21.26447559]
[1738466265538,0.03349064,211.07,211.03,21.26447559]
[1738466265939,0.03349064,211.07,211.06,4.7386]
[1738466266139,0.03349064,211.07,211.03,21.26447559]
[1738466266539,0.03349064,211.07,211.06,4.7386]
[1738466266740,0.03349064,211.07,211.03,21.26447559]
[1738466266941,0.03349064,211.07,210.99,21.26447559]
[1738466267535,0.03349064,211.07,211.06,26.00307559]
[1738466267938,1.4395,211.2,211.06,21.26447559]
[1738466268239,47.00691576,211.29,211.15,21.26447559]
[1738466268437,122.93414935,211.32,211.15,21.26447559]
[1738466268438,6.29269424,211.3,211.15,21.26447559]
[1738466268742,21.26447559,211.26,211.07,21.26447559]
[1738466268942,21.26447559,211.22,211.03,21.26447559]
[1738466269144,21.26447559,211.18,210.99,21.26447559]
[1738466270433,0.03326247,211.11,211.03,4.7392]
[1738466271245,0.03326247,211.11,210.99,26.00457559]
[1738466271440,0.03326247,211.11,210.95,21.26447559]
[1738466271744,4.7381,211.09,210.95,21.26447559]
[1738466271935,0.03489784,211.05,210.98,4.7404]
[1738466272139,0.03489784,211.05,210.99,21.26447559]
[1738466272336,21.26447559,211.16,210.99,21.26447559]
[1738466272646,0.03269496,211.04,210.99,21.26447559]
[1738466272840,4.7384,211.08,210.99,21.26447559]
[1738466273144,0.03279503,211.04,210.99,21.26447559]
[1738466273644,0.03429398,211.04,210.99,21.26447559]
[1738466276047,4.77349398,211.04,210.99,21.26447559]
[1738466276247,4.77349398,211.04,210.95,26.00557559]
[1738466276951,0.03429398,211.04,210.95,21.26447559]
[1738466277846,21.26447559,210.96,210.65,21.26447559]
[1738466278051,4.5322,210.95,210.72,0.0475]
[1738466278351,0.03033438,210.89,210.72,0.0475]
[1738466278552,0.03033438,210.89,210.81,21.26447559]
[1738466279253,0.03033438,210.89,210.85,21.26447559]
[1738466279649,0.03033438,210.89,210.76,21.26447559]
[1738466280651,0.03033438,210.89,210.72,0.0475]
[1738466280652,0.03033438,210.89,210.72,21.31197559]
[1738466281149,0.03033438,210.89,210.77,10.12799487]
[1738466281343,21.26447559,210.88,210.77,10.12799487]
[1738466281548,21.26447559,210.84,210.77,10.12799487]
[1738466281749,4.7448,210.79,210.77,0.00589487]
[1738466281954,1.5045,210.78,210.64,21.26447559]
[1738466282451,1.5045,210.78,210.6,21.26447559]
[1738466282452,0.03626424,210.73,210.6,21.26447559]
[1738466282656,0.03626424,210.73,210.56,21.26447559]
[1738466282950,0.03581933,210.67,210.56,21.26447559]
[1738466283153,0.03581933,210.67,210.6,21.26447559]
[1738466283555,0.03581933,210.67,210.56,21.26447559]
[1738466283954,0.03581933,210.67,210.52,21.26447559]
[1738466284348,1.4967,210.77,210.61,21.26447559]
[1738466284551,1.4967,210.77,210.66,21.26447559]
[1738466284753,21.26447559,210.88,210.7,21.26447559]
[1738466284948,1.4546,210.87,210.7,21.26447559]
[1738466285155,6.29269424,210.93,210.8,4.7444]
[1738466285355,6.29269424,210.93,210.82,21.26447559]
[1738466285551,6.29269424,210.93,210.86,21.26447559]
[1738466285860,74.05844018,210.97,210.9,21.26447559]
[1738466286161,74.05844018,210.97,210.94,21.26447559]
[1738466286162,73.95976241,210.97,210.94,21.26447559]
[1738466286358,0.03132055,210.96,210.95,4.741]
[1738466286656,1.86530499,210.97,210.95,4.741]
[1738466286854,1.86530499,210.97,210.94,21.26447559]
[1738466287061,1.86530499,210.97,210.91,0.0362161]
[1738466287361,26.00327559,211.06,210.91,0.0362161]
[1738466287553,1.4366,211.05,210.91,0.0362161]
[1738466287750,0.03125072,211.01,210.9,34.70177077]
[1738466287950,0.03125072,211.01,210.96,0.03190978]
[1738466288358,1.4366,211.05,210.96,0.03190978]
[1738466288554,0.0350265,211.01,210.96,0.03190978]
[1738466289758,4.7748265,211.01,210.96,0.03190978]
[1738466289950,0.0350265,211.01,210.83,34.70177077]
[1738466290151,36.12227077,211.0,210.83,34.70177077]
[1738466290350,1.4205,211.0,210.83,34.70177077]
[1738466290952,1.4366,211.05,210.91,34.70177077]
[1738466291460,1.4366,211.05,210.95,34.70177077]
[1738466291761,1.4205,211.08,210.99,34.70177077]
[1738466291965,1.4205,211.08,210.95,34.70177077]
[1738466292158,1.4205,211.08,210.91,34.70177077]
[1738466292456,34.70177077,211.0,210.83,34.70177077]
[1738466292660,1.529,210.99,210.83,34.70177077]
[1738466292858,0.03348321,211.02,210.87,34.70177077]
[1738466293060,4.7401,211.0,210.89,4.7424]
[1738466293259,34.70177077,211.04,210.87,34.70177077]
[1738466293559,1.529,211.07,210.87,34.70177077]
[1738466293960,0.03507908,210.99,210.95,0.0310674]
[1738466295462,0.03507908,210.99,210.95,34.73283817]
[1738466295662,0.03507908,210.99,210.95,0.0310674]
[1738466296562,4.7408,210.97,210.95,0.0310674]
[1738466296858,1.5749,210.98,210.83,34.70177077]
[1738466297059,1.5749,210.98,210.87,4.7428]
[1738466297260,1.5749,210.98,210.83,34.70177077]
[1738466297962,0.03167933,210.93,210.83,34.70177077]
[1738466298762,0.03167933,210.93,210.91,4.7419]
[1738466298965,1.529,211.07,210.9,34.70177077]
[1738466299162,87.48859957,211.18,211.0,34.70177077]
[1738466299468,3.0823,211.17,211.0,34.70177077]
[1738466299663,34.70177077,211.14,210.96,34.70177077]
[1738466299965,34.70177077,211.14,210.91,0.0586]
[1738466299966,34.70177077,211.06,210.87,34.70177077]
[1738466300162,3.0823,211.05,210.87,34.70177077]
[1738466300367,4.7391,211.04,211.03,2.283e-05]
[1738466300664,3.0823,211.05,210.87,34.70177077]
[1738466300867,4.74,211.01,210.92,4.7417]
[1738466301060,34.70177077,211.02,210.83,34.70177077]
[1738466301565,0.03127599,210.95,210.83,34.70177077]
[1738466302062,4.7415,210.94,210.83,34.70177077]
[1738466302263,0.03127599,210.95,210.83,34.70177077]
[1738466302465,1.4499,211.01,210.83,34.70177077]
[1738466302663,0.03618462,210.91,210.83,39.44557077]
[1738466303563,0.03618462,210.91,210.83,34.70177077]
[1738466304155,0.03618462,210.91,210.79,34.70177077]
[1738466304364,34.70177077,210.94,210.75,34.70177077]
[1738466304670,4.77870433,210.87,210.75,39.44727077]
[1738466304858,0.03570433,210.87,210.75,34.70177077]
[1738466305563,4.7433,210.86,210.75,34.70177077]
[1738466305767,1.4555,210.9,210.79,34.70177077]
[1738466305970,0.03363937,210.83,210.79,34.70177077]
[1738466306165,0.03363937,210.83,210.75,34.70177077]
[1738466307264,0.03363937,210.83,210.74,22.43624]
[1738466307871,0.03363937,210.83,210.74,57.13801077]
[1738466308066,0.03363937,210.83,210.78,34.70177077]
[1738466308570,0.03363937,210.83,210.78,39.44667077]
[1738466308769,0.03363937,210.83,210.82,34.70177077]
[1738466308967,0.03363937,210.83,210.78,34.70177077]
[1738466309871,0.03363937,210.83,210.74,57.13801077]
[1738466311773,0.03363937,210.83,210.77,4.7451]
[1738466311974,0.03363937,210.83,210.74,57.13801077]
[1738466313472,0.03363937,210.83,210.78,4.7449]
[1738466313775,0.03363937,210.83,210.74,57.13801077]
[1738466313974,0.03363937,210.83,210.77,4.7451]
[1738466314171,0.03363937,210.83,210.74,57.13801077]
[1738466314676,0.03363937,210.83,210.78,34.70177077]
[1738466314975,34.70177077,211.02,210.82,34.70177077]
[1738466315475,34.70177077,211.02,210.86,34.70177077]
[1738466315870,34.70177077,211.02,210.82,34.70177077]
[1738466316067,0.03323594,210.96,210.92,0.03095441]
[1738466316273,0.03323594,210.96,210.92,5.441e-05]
[1738466316468,34.70177077,210.94,210.74,57.13801077]
[1738466316872,34.70177077,210.9,210.74,22.43624]
[1738466317376,0.03028494,210.84,210.74,57.13801077]
[1738466317974,0.03028494,210.84,210.8,4.7444]
[1738466318275,0.03028494,210.84,210.74,57.13801077]
[1738466318477,0.03028494,210.84,210.78,34.70177077]
[1738466318872,0.03028494,210.84,210.74,57.13801077]
[1738466319068,0.03028494,210.84,210.78,4.7449]
[1738466319278,0.03028494,210.84,210.78,34.70177077]
[1738466320075,0.03028494,210.84,210.8,4.7444]
[1738466320373,0.03028494,210.84,210.76,34.70177077]
[1738466321079,0.03028494,210.84,210.8,34.70177077]
[1738466322473,0.03028494,210.84,210.76,34.70177077]
[1738466322777,0.03028494,210.84,210.74,22.43624]
[1738466323177,0.03028494,210.84,210.77,4.7451]
[1738466323378,0.03028494,210.84,210.74,22.43624]
[1738466323878,0.03028494,210.84,210.8,34.70177077]
[1738466325881,1.5377,210.96,210.8,34.70177077]
[1738466326080,1.5377,210.96,210.81,1.4974]
[1738466326475,4.7416,210.94,210.85,4.7432]
[1738466326683,53.4449499,211.1,210.89,34.70177077]
[1738466326982,4.7383,211.08,210.99,4.7402]
[1738466327184,0.03619594,211.02,211.01,34.70177077]
[1738466327485,18.74317913,211.1,211.01,34.70177077]
[1738466327982,18.74317913,211.1,211.05,34.70177077]
[1738466328181,16.40177913,211.1,211.09,34.70177077]
[1738466328481,49.94214199,211.11,211.09,34.70177077]
[1738466328873,74.82519462,211.12,211.1,4.7377]
[1738466329077,74.7900349,211.12,211.1,4.7377]
[1738466329581,74.7900349,211.12,211.09,34.70177077]
[1738466329582,0.03404829,211.12,211.07,0.03318672]
[1738466330081,4.7382,211.08,211.07,0.03318672]
[1738466330486,0.03404829,211.12,211.07,0.03318672]
[1738466330982,0.03404829,211.12,211.08,34.70177077]
[1738466331281,0.03404829,211.12,211.1,4.7376]
[1738466331581,0.03404829,211.12,211.08,34.70177077]